[Event "Early-Titled-Tuesday-Blitz-October-10-2023"]
[Site "Chess.com"]
[Date "2023.10.10"]
[Round "11"]
[White "motivated_bishop"]
[Black "Virgo15"]
[Result "0-1"]
[WhiteElo "2509"]
[BlackElo "2735"]
[TimeControl "180+1"]
[EndTime "10:04:27 PDT"]
[Termination "Virgo15 won by checkmate"]

1. d4 {[%clk 0:02:44.9]} 1... e6 {[%clk 0:03:00.9]} 2. c4 {[%clk 0:02:44.3]}
2... d5 {[%clk 0:03:00.9]} 3. Nc3 {[%clk 0:02:43.9]} 3... a6 {[%clk 0:03:01.6]}
4. cxd5 {[%clk 0:02:43.6]} 4... exd5 {[%clk 0:03:02]} 5. Nf3 {[%clk 0:02:42.6]}
5... Nf6 {[%clk 0:03:01.5]} 6. Bg5 {[%clk 0:02:42.7]} 6... Be6 {[%clk
0:03:01.4]} 7. e3 {[%clk 0:02:42.9]} 7... Nbd7 {[%clk 0:03:01.1]} 8. Bd3 {[%clk
0:02:43]} 8... Bd6 {[%clk 0:02:58]} 9. O-O {[%clk 0:02:42.9]} 9... c6 {[%clk
0:02:48.4]} 10. Qc2 {[%clk 0:02:42.5]} 10... Qc7 {[%clk 0:02:47.7]} 11. Rab1
{[%clk 0:02:39.1]} 11... O-O {[%clk 0:02:46.8]} 12. b4 {[%clk 0:02:35.2]} 12...
Bg4 {[%clk 0:02:42.1]} 13. h3 {[%clk 0:02:30.7]} 13... Bh5 {[%clk 0:02:40.9]}
14. Nh4 {[%clk 0:02:24.5]} 14... Bg6 {[%clk 0:02:17.1]} 15. Nf5 {[%clk
0:02:20.9]} 15... Bxf5 {[%clk 0:02:12.5]} 16. Bxf5 {[%clk 0:02:21.8]} 16... h6
{[%clk 0:02:13.1]} 17. Bxf6 {[%clk 0:02:20.3]} 17... Nxf6 {[%clk 0:02:14]} 18.
a4 {[%clk 0:02:18.5]} 18... g6 {[%clk 0:02:04.2]} 19. Bd3 {[%clk 0:02:15.5]}
19... b5 {[%clk 0:01:59.4]} 20. Rfc1 {[%clk 0:02:13.6]} 20... Qe7 {[%clk
0:01:57.2]} 21. Ne2 {[%clk 0:02:02.1]} 21... Rfc8 {[%clk 0:01:39]} 22. Qb3
{[%clk 0:01:54.4]} 22... Rab8 {[%clk 0:01:27.5]} 23. Rc2 {[%clk 0:01:27.9]}
23... Rc7 {[%clk 0:01:24.9]} 24. Nc1 {[%clk 0:01:05.4]} 24... Kg7 {[%clk
0:01:20.7]} 25. Bf1 {[%clk 0:01:02.1]} 25... Ne4 {[%clk 0:01:18.5]} 26. Nd3
{[%clk 0:01:01.2]} 26... Qh4 {[%clk 0:01:09.4]} 27. Nc5 {[%clk 0:01:00.4]} 27...
Bxc5 {[%clk 0:01:02.6]} 28. bxc5 {[%clk 0:00:58.7]} 28... Re8 {[%clk 0:00:58.6]}
29. Ra1 {[%clk 0:00:50.7]} 29... Re6 {[%clk 0:00:57.6]} 30. axb5 {[%clk
0:00:47.9]} 30... axb5 {[%clk 0:00:57.4]} 31. Ra8 {[%clk 0:00:47.6]} 31... Rf6
{[%clk 0:00:57]} 32. Qa2 {[%clk 0:00:47.4]} 32... g5 {[%clk 0:00:47.9]} 33. Qa5
{[%clk 0:00:23.4]} 33... Rxf2 {[%clk 0:00:46.9]} 34. Qxc7 {[%clk 0:00:21.3]}
34... Rxc2 {[%clk 0:00:36.3]} 35. Qe5+ {[%clk 0:00:19]} 35... Nf6 {[%clk
0:00:33.3]} 36. Qf5 {[%clk 0:00:16.4]} 36... Qe4 {[%clk 0:00:27.2]} 37. Bd3
{[%clk 0:00:11.9]} 37... Qxg2# {[%clk 0:00:26.1]} 0-1

[Event "Early-Titled-Tuesday-Blitz-October-10-2023"]
[Site "Chess.com"]
[Date "2023.10.10"]
[Round "11"]
[White "adotand"]
[Black "MikaelyanArman"]
[Result "0-1"]
[WhiteElo "2883"]
[BlackElo "2869"]
[TimeControl "180+1"]
[EndTime "10:04:28 PDT"]
[Termination "MikaelyanArman won by resignation"]

1. d4 {[%clk 0:03:00.9]} 1... d5 {[%clk 0:02:58.6]} 2. c4 {[%clk 0:02:59.1]}
2... c6 {[%clk 0:02:59]} 3. Nf3 {[%clk 0:02:59.7]} 3... Nf6 {[%clk 0:02:58.9]}
4. e3 {[%clk 0:03:00.5]} 4... e6 {[%clk 0:02:58.9]} 5. b3 {[%clk 0:02:59.8]}
5... Nbd7 {[%clk 0:02:56.3]} 6. Bb2 {[%clk 0:02:59.8]} 6... b6 {[%clk
0:02:54.8]} 7. Nbd2 {[%clk 0:02:59.1]} 7... Bb7 {[%clk 0:02:55.5]} 8. Bd3 {[%clk
0:02:59.8]} 8... Bd6 {[%clk 0:02:38.2]} 9. O-O {[%clk 0:02:58]} 9... O-O {[%clk
0:02:37.8]} 10. Ne5 {[%clk 0:02:57.8]} 10... c5 {[%clk 0:02:33.6]} 11. cxd5
{[%clk 0:02:56.3]} 11... exd5 {[%clk 0:02:31.5]} 12. Rc1 {[%clk 0:02:50.1]}
12... Qe7 {[%clk 0:01:39]} 13. f4 {[%clk 0:02:17.5]} 13... Rac8 {[%clk
0:01:38.5]} 14. Qf3 {[%clk 0:02:11.9]} 14... cxd4 {[%clk 0:01:35.1]} 15. exd4
{[%clk 0:02:10.2]} 15... Bb4 {[%clk 0:01:33.5]} 16. Qh3 {[%clk 0:01:45.1]} 16...
Bxd2 {[%clk 0:01:22.1]} 17. Nxd7 {[%clk 0:01:45.1]} 17... Qe3+ {[%clk
0:01:17.8]} 18. Qxe3 {[%clk 0:01:44.1]} 18... Bxe3+ {[%clk 0:01:18.7]} 19. Kh1
{[%clk 0:01:44.9]} 19... Nxd7 {[%clk 0:01:10.7]} 20. Rce1 {[%clk 0:01:36.3]}
20... Bd2 {[%clk 0:00:57.4]} 21. Re7 {[%clk 0:01:36.2]} 21... Bc6 {[%clk
0:00:57.8]} 22. Ba3 {[%clk 0:01:31.2]} 22... Rfe8 {[%clk 0:00:51.6]} 23. Rd1
{[%clk 0:01:25.6]} 23... Rxe7 {[%clk 0:00:48.6]} 24. Bxe7 {[%clk 0:01:26.5]}
24... Re8 {[%clk 0:00:49.2]} 25. Rxd2 {[%clk 0:01:20.8]} 25... Rxe7 {[%clk
0:00:49.6]} 26. Kg1 {[%clk 0:01:21.7]} 26... Kf8 {[%clk 0:00:40.8]} 27. Rc2
{[%clk 0:01:21.7]} 27... Nb8 {[%clk 0:00:41.4]} 28. Kf2 {[%clk 0:01:21.5]} 28...
g6 {[%clk 0:00:36.7]} 29. g4 {[%clk 0:01:20]} 29... Ke8 {[%clk 0:00:35.8]} 30.
a4 {[%clk 0:01:19.8]} 30... Kd8 {[%clk 0:00:34.3]} 31. f5 {[%clk 0:01:19.4]}
31... Bd7 {[%clk 0:00:31.4]} 32. Rd2 {[%clk 0:01:08.9]} 32... Nc6 {[%clk
0:00:31.2]} 33. Bb1 {[%clk 0:01:09.4]} 33... gxf5 {[%clk 0:00:29.3]} 34. gxf5
{[%clk 0:01:10.1]} 34... f6 {[%clk 0:00:29.9]} 35. h4 {[%clk 0:01:08.6]} 35...
Rg7 {[%clk 0:00:28.9]} 36. Kf3 {[%clk 0:01:07.6]} 36... Ne7 {[%clk 0:00:28.8]}
37. Kf4 {[%clk 0:01:07.9]} 37... Rg1 {[%clk 0:00:28.9]} 38. Bd3 {[%clk
0:01:08.6]} 38... Bxf5 {[%clk 0:00:27.8]} 39. Bb5 {[%clk 0:01:03.8]} 39... Be4
{[%clk 0:00:24.5]} 40. h5 {[%clk 0:01:02.9]} 40... Rh1 {[%clk 0:00:20.5]} 41. a5
{[%clk 0:00:54.5]} 41... Rh4+ {[%clk 0:00:17.7]} 42. Kg3 {[%clk 0:00:53.6]}
42... Nf5+ {[%clk 0:00:17.6]} 43. Kf2 {[%clk 0:00:53.8]} 43... Rh2+ {[%clk
0:00:17.7]} 44. Ke1 {[%clk 0:00:54.7]} 44... Rxd2 {[%clk 0:00:17.5]} 45. Kxd2
{[%clk 0:00:55.6]} 45... bxa5 {[%clk 0:00:17.7]} 46. Kc3 {[%clk 0:00:55.1]}
46... Ke7 {[%clk 0:00:17]} 47. Be2 {[%clk 0:00:51.6]} 47... Ng3 {[%clk 0:00:16]}
48. Bd1 {[%clk 0:00:51.6]} 48... f5 {[%clk 0:00:16.1]} 49. Kd2 {[%clk 0:00:51]}
49... f4 {[%clk 0:00:16.7]} 0-1

[Event "Early-Titled-Tuesday-Blitz-October-10-2023"]
[Site "Chess.com"]
[Date "2023.10.10"]
[Round "11"]
[White "kreonx"]
[Black "Mikhail_Golubev"]
[Result "1-0"]
[WhiteElo "2498"]
[BlackElo "2604"]
[TimeControl "180+1"]
[EndTime "10:04:28 PDT"]
[Termination "kreonx won by resignation"]

1. e4 {[%clk 0:03:00.9]} 1... c5 {[%clk 0:02:59.6]} 2. c4 {[%clk 0:02:58.6]}
2... Nc6 {[%clk 0:02:58.3]} 3. Nc3 {[%clk 0:02:59.2]} 3... g6 {[%clk 0:02:57.8]}
4. g3 {[%clk 0:02:59.8]} 4... Bg7 {[%clk 0:02:58.4]} 5. Bg2 {[%clk 0:03:00.4]}
5... Nf6 {[%clk 0:02:55.9]} 6. Rb1 {[%clk 0:03:00.4]} 6... O-O {[%clk
0:02:55.3]} 7. Nge2 {[%clk 0:03:01]} 7... Ne8 {[%clk 0:02:53.3]} 8. a3 {[%clk
0:03:00.4]} 8... Nc7 {[%clk 0:02:41.3]} 9. d3 {[%clk 0:03:00.9]} 9... a5 {[%clk
0:02:38.9]} 10. O-O {[%clk 0:02:56.6]} 10... Ne6 {[%clk 0:02:39]} 11. f4 {[%clk
0:02:56.8]} 11... Ned4 {[%clk 0:02:34.4]} 12. Nxd4 {[%clk 0:02:54.7]} 12... Nxd4
{[%clk 0:02:32.4]} 13. Ne2 {[%clk 0:02:48.6]} 13... e6 {[%clk 0:02:27.8]} 14.
Be3 {[%clk 0:02:41.1]} 14... d5 {[%clk 0:02:21.6]} 15. Bxd4 {[%clk 0:02:28.7]}
15... cxd4 {[%clk 0:02:21.3]} 16. exd5 {[%clk 0:02:28.9]} 16... exd5 {[%clk
0:02:18.9]} 17. Bxd5 {[%clk 0:02:29.2]} 17... Re8 {[%clk 0:02:13.2]} 18. Be4
{[%clk 0:02:17.6]} 18... Bg4 {[%clk 0:02:07.1]} 19. Qd2 {[%clk 0:02:03.8]} 19...
f5 {[%clk 0:01:45.9]} 20. Bf3 {[%clk 0:01:23.9]} 20... Bxf3 {[%clk 0:01:44.2]}
21. Rxf3 {[%clk 0:01:24.8]} 21... Ra6 {[%clk 0:01:44.4]} 22. Kg2 {[%clk
0:01:15.1]} 22... Rae6 {[%clk 0:01:43.7]} 23. Ng1 {[%clk 0:01:12.9]} 23... a4
{[%clk 0:01:38.3]} 24. b4 {[%clk 0:00:49.4]} 24... axb3 {[%clk 0:01:29.8]} 25.
Rxb3 {[%clk 0:00:49.5]} 25... Qd7 {[%clk 0:01:22.3]} 26. Qb2 {[%clk 0:00:42.3]}
26... R8e7 {[%clk 0:01:13.2]} 27. Rf2 {[%clk 0:00:23]} 27... Re3 {[%clk
0:01:11]} 28. Nf3 {[%clk 0:00:18.5]} 28... h6 {[%clk 0:01:07.4]} 29. Qd2 {[%clk
0:00:13.3]} 29... Qc6 {[%clk 0:01:03.7]} 30. Rb5 {[%clk 0:00:11.5]} 30... Kh7
{[%clk 0:01:01.3]} 31. Rd5 {[%clk 0:00:12]} 31... g5 {[%clk 0:00:54.5]} 32. fxg5
{[%clk 0:00:10.8]} 32... hxg5 {[%clk 0:00:54.8]} 33. Nxg5+ {[%clk 0:00:11.7]}
33... Kg6 {[%clk 0:00:55.2]} 34. Nf3 {[%clk 0:00:11.9]} 34... Bh6 {[%clk
0:00:53.9]} 35. Nh4+ {[%clk 0:00:11.8]} 35... Kh7 {[%clk 0:00:53.2]} 36. Nxf5
{[%clk 0:00:12]} 36... Rxg3+ {[%clk 0:00:53]} 37. hxg3 {[%clk 0:00:10.8]} 37...
Bxd2 {[%clk 0:00:53.9]} 38. Nxe7 {[%clk 0:00:10.8]} 38... Qe6 {[%clk 0:00:52.8]}
39. Nf5 {[%clk 0:00:09.1]} 39... Be3 {[%clk 0:00:50.7]} 40. Rf1 {[%clk
0:00:08.4]} 40... Kg6 {[%clk 0:00:45.4]} 41. Rd6 {[%clk 0:00:07.5]} 1-0

[Event "Early-Titled-Tuesday-Blitz-October-10-2023"]
[Site "Chess.com"]
[Date "2023.10.10"]
[Round "11"]
[White "JuniorJumper"]
[Black "RianKapriaga"]
[Result "1-0"]
[WhiteElo "2569"]
[BlackElo "2312"]
[TimeControl "180+1"]
[EndTime "10:04:28 PDT"]
[Termination "JuniorJumper won by checkmate"]

1. d4 {[%clk 0:02:47.3]} 1... f5 {[%clk 0:02:57.4]} 2. Bg5 {[%clk 0:02:46.2]}
2... h6 {[%clk 0:02:51.9]} 3. Bh4 {[%clk 0:02:45.5]} 3... g5 {[%clk 0:02:52.4]}
4. e3 {[%clk 0:02:40.3]} 4... Nf6 {[%clk 0:02:52.4]} 5. Bg3 {[%clk 0:02:40.6]}
5... d6 {[%clk 0:02:51]} 6. c4 {[%clk 0:02:30.9]} 6... Bg7 {[%clk 0:02:50]} 7.
Nc3 {[%clk 0:02:30.9]} 7... Be6 {[%clk 0:02:44.4]} 8. Bd3 {[%clk 0:02:28.9]}
8... O-O {[%clk 0:02:43.2]} 9. Qf3 {[%clk 0:02:26.9]} 9... c6 {[%clk 0:02:41]}
10. Bxf5 {[%clk 0:02:24.6]} 10... Bxf5 {[%clk 0:02:39.4]} 11. Qxf5 {[%clk
0:02:24.6]} 11... Qb6 {[%clk 0:02:27.6]} 12. O-O-O {[%clk 0:02:18.8]} 12... Na6
{[%clk 0:02:23.8]} 13. h4 {[%clk 0:01:44.4]} 13... g4 {[%clk 0:02:20.9]} 14.
Nge2 {[%clk 0:01:40.1]} 14... Qb4 {[%clk 0:02:10]} 15. Qe6+ {[%clk 0:01:32.3]}
15... Rf7 {[%clk 0:02:08]} 16. c5 {[%clk 0:01:09.5]} 16... dxc5 {[%clk
0:01:49.2]} 17. a3 {[%clk 0:01:08.9]} 17... Qa5 {[%clk 0:01:44.1]} 18. d5 {[%clk
0:00:45.5]} 18... cxd5 {[%clk 0:00:58.5]} 19. Nxd5 {[%clk 0:00:43.3]} 19... Nxd5
{[%clk 0:00:58.5]} 20. Rxd5 {[%clk 0:00:43.7]} 20... Bxb2+ {[%clk 0:00:47]} 21.
Kxb2 {[%clk 0:00:40.9]} 21... Qb5+ {[%clk 0:00:46]} 22. Kc3 {[%clk 0:00:27]}
22... Qxe2 {[%clk 0:00:28.4]} 23. Rhd1 {[%clk 0:00:27.5]} 23... Rf8 {[%clk
0:00:14.8]} 24. Rd8 {[%clk 0:00:23.1]} 24... b5 {[%clk 0:00:08.1]} 25. Rxf8+
{[%clk 0:00:22.7]} 25... Kxf8 {[%clk 0:00:07.1]} 26. Rd8+ {[%clk 0:00:23.1]}
26... Kg7 {[%clk 0:00:07.6]} 27. Be5+ {[%clk 0:00:23.6]} 27... Rf6 {[%clk
0:00:05.9]} 28. Qxe7+ {[%clk 0:00:23.7]} 28... Kg6 {[%clk 0:00:06.5]} 29. Qxf6+
{[%clk 0:00:24.2]} 29... Kh5 {[%clk 0:00:07.2]} 30. Qf5+ {[%clk 0:00:23]} 30...
Kxh4 {[%clk 0:00:07.8]} 31. Bg3# {[%clk 0:00:23.7]} 1-0

[Event "Early-Titled-Tuesday-Blitz-October-10-2023"]
[Site "Chess.com"]
[Date "2023.10.10"]
[Round "11"]
[White "ExchangeAB"]
[Black "carloseduar100"]
[Result "1-0"]
[WhiteElo "2501"]
[BlackElo "2334"]
[TimeControl "180+1"]
[EndTime "10:04:30 PDT"]
[Termination "ExchangeAB won on time"]

1. d4 {[%clk 0:03:00.9]} 1... d5 {[%clk 0:02:54.8]} 2. Nc3 {[%clk 0:03:00.7]}
2... Nf6 {[%clk 0:02:54.1]} 3. Bf4 {[%clk 0:03:00.9]} 3... Bf5 {[%clk
0:02:54.9]} 4. e3 {[%clk 0:02:59.5]} 4... e6 {[%clk 0:02:54.1]} 5. f3 {[%clk
0:02:59.7]} 5... a6 {[%clk 0:02:54.1]} 6. g4 {[%clk 0:02:59.8]} 6... Bg6 {[%clk
0:02:53.9]} 7. h4 {[%clk 0:03:00.5]} 7... h6 {[%clk 0:02:54.1]} 8. Bd3 {[%clk
0:02:58.9]} 8... Bxd3 {[%clk 0:02:53.1]} 9. Qxd3 {[%clk 0:02:59.8]} 9... Nbd7
{[%clk 0:02:53.1]} 10. Nge2 {[%clk 0:02:58.7]} 10... Bd6 {[%clk 0:02:52.8]} 11.
Kf2 {[%clk 0:02:57]} 11... Qe7 {[%clk 0:02:52.2]} 12. Bxd6 {[%clk 0:02:37.9]}
12... cxd6 {[%clk 0:02:49.9]} 13. Ng3 {[%clk 0:02:38.5]} 13... Rc8 {[%clk
0:02:45.9]} 14. g5 {[%clk 0:02:35.9]} 14... hxg5 {[%clk 0:02:44.7]} 15. hxg5
{[%clk 0:02:35.3]} 15... Rxh1 {[%clk 0:02:41]} 16. gxf6 {[%clk 0:02:18.3]} 16...
Rxa1 {[%clk 0:02:36.9]} 17. fxe7 {[%clk 0:02:17.8]} 17... Kxe7 {[%clk
0:02:37.8]} 18. e4 {[%clk 0:02:07.5]} 18... Rh8 {[%clk 0:02:36.6]} 19. Kg2
{[%clk 0:02:06.3]} 19... dxe4 {[%clk 0:02:32.3]} 20. fxe4 {[%clk 0:02:05.4]}
20... Nf6 {[%clk 0:02:19.2]} 21. e5 {[%clk 0:02:00.2]} 21... Ng4 {[%clk
0:02:12.9]} 22. exd6+ {[%clk 0:01:55.3]} 22... Kxd6 {[%clk 0:02:08.1]} 23. Nce4+
{[%clk 0:01:36.5]} 23... Kc7 {[%clk 0:01:31]} 24. Qc4+ {[%clk 0:01:27]} 24...
Kb8 {[%clk 0:01:31]} 25. Qb3 {[%clk 0:01:08.5]} 25... f5 {[%clk 0:01:26.7]} 26.
Qxe6 {[%clk 0:00:49.1]} 26... Ka8 {[%clk 0:00:50.9]} 27. Nxf5 {[%clk 0:00:37.9]}
27... Rh2+ {[%clk 0:00:49.6]} 28. Kg3 {[%clk 0:00:38.2]} 28... Rg1+ {[%clk
0:00:46.3]} 29. Kf4 {[%clk 0:00:38.4]} 29... g5+ {[%clk 0:00:30.2]} 30. Kxg5
{[%clk 0:00:29.6]} 30... Nh6+ {[%clk 0:00:01.6]} 31. Nfg3 {[%clk 0:00:27.8]} 1-0

[Event "Early-Titled-Tuesday-Blitz-October-10-2023"]
[Site "Chess.com"]
[Date "2023.10.10"]
[Round "11"]
[White "chenrip"]
[Black "Sadykov_Ramil"]
[Result "1-0"]
[WhiteElo "2511"]
[BlackElo "2610"]
[TimeControl "180+1"]
[EndTime "10:04:32 PDT"]
[Termination "chenrip won by resignation"]

1. e4 {[%clk 0:02:50.6]} 1... e6 {[%clk 0:03:00.9]} 2. d4 {[%clk 0:02:50]} 2...
d5 {[%clk 0:03:01.6]} 3. Nc3 {[%clk 0:02:49.3]} 3... Bb4 {[%clk 0:03:01.5]} 4.
e5 {[%clk 0:02:49.6]} 4... Ne7 {[%clk 0:03:02]} 5. a3 {[%clk 0:02:50.1]} 5...
Bxc3+ {[%clk 0:03:02.2]} 6. bxc3 {[%clk 0:02:51]} 6... b6 {[%clk 0:03:03]} 7. a4
{[%clk 0:02:51]} 7... Ba6 {[%clk 0:03:01]} 8. Bxa6 {[%clk 0:02:49.5]} 8... Nxa6
{[%clk 0:03:00.9]} 9. Ba3 {[%clk 0:02:49.6]} 9... c5 {[%clk 0:02:55.1]} 10. h4
{[%clk 0:02:43.7]} 10... h5 {[%clk 0:02:52.6]} 11. Nf3 {[%clk 0:02:43.4]} 11...
Qd7 {[%clk 0:02:49.8]} 12. Qe2 {[%clk 0:02:40.7]} 12... Qxa4 {[%clk 0:02:41.2]}
13. O-O {[%clk 0:02:39.6]} 13... Qc4 {[%clk 0:02:41.3]} 14. Qxc4 {[%clk
0:02:36.4]} 14... dxc4 {[%clk 0:02:41.3]} 15. Bxc5 {[%clk 0:02:34.1]} 15... Nxc5
{[%clk 0:02:41.2]} 16. dxc5 {[%clk 0:02:34.3]} 16... bxc5 {[%clk 0:02:39]} 17.
Ra5 {[%clk 0:02:30]} 17... Nd5 {[%clk 0:02:20.7]} 18. Rxc5 {[%clk 0:02:20.4]}
18... Kd7 {[%clk 0:02:20.8]} 19. Ra1 {[%clk 0:02:15.3]} 19... Rhc8 {[%clk
0:02:16.3]} 20. Rca5 {[%clk 0:02:13.2]} 20... Rc7 {[%clk 0:01:59.6]} 21. R1a3
{[%clk 0:02:11.6]} 21... f6 {[%clk 0:01:57.4]} 22. exf6 {[%clk 0:02:08.9]} 22...
gxf6 {[%clk 0:01:58.3]} 23. Nd4 {[%clk 0:02:08.7]} 23... Rb7 {[%clk 0:01:39.9]}
24. R5a4 {[%clk 0:01:56]} 24... e5 {[%clk 0:01:32.7]} 25. Nf5 {[%clk 0:01:50.5]}
25... Ke6 {[%clk 0:01:21]} 26. Ng3 {[%clk 0:01:47.8]} 26... Nf4 {[%clk
0:01:19.6]} 27. Rxc4 {[%clk 0:01:46.5]} 27... a5 {[%clk 0:01:15.9]} 28. Rc6+
{[%clk 0:01:43.1]} 28... Kf7 {[%clk 0:01:13]} 29. Ne4 {[%clk 0:01:38.3]} 29...
Rb1+ {[%clk 0:01:08]} 30. Kh2 {[%clk 0:01:38.3]} 30... Re1 {[%clk 0:01:01.7]}
31. Nxf6 {[%clk 0:01:26.3]} 31... Re2 {[%clk 0:01:01.1]} 32. Kg3 {[%clk
0:01:16.7]} 32... Rxc2 {[%clk 0:00:56.9]} 33. Kf3 {[%clk 0:01:14.5]} 33... a4
{[%clk 0:00:40.6]} 34. g3 {[%clk 0:01:10]} 34... Nd3 {[%clk 0:00:39.2]} 35. Ne4
{[%clk 0:01:09.9]} 35... Nb2 {[%clk 0:00:25.1]} 36. Ke3 {[%clk 0:00:57.8]} 36...
Nd1+ {[%clk 0:00:21.2]} 37. Kd3 {[%clk 0:00:57.6]} 37... Rb2 {[%clk 0:00:20.5]}
38. Kc4 {[%clk 0:00:51.6]} 38... Nxf2 {[%clk 0:00:15.5]} 39. Rf6+ {[%clk
0:00:51.3]} 39... Ke7 {[%clk 0:00:14.4]} 40. Rxf2 {[%clk 0:00:51.9]} 40... Rxf2
{[%clk 0:00:12.9]} 41. Nxf2 {[%clk 0:00:51.7]} 41... Rg8 {[%clk 0:00:13.8]} 42.
Ne4 {[%clk 0:00:52]} 42... Rg4 {[%clk 0:00:12.9]} 43. Kd5 {[%clk 0:00:51.5]}
43... Rg8 {[%clk 0:00:10]} 44. Rxa4 {[%clk 0:00:51.6]} 44... Rd8+ {[%clk
0:00:10.4]} 45. Kxe5 {[%clk 0:00:51.9]} 45... Kf7 {[%clk 0:00:10.1]} 46. Ra7+
{[%clk 0:00:51.7]} 46... Kg6 {[%clk 0:00:10.5]} 47. Ra6+ {[%clk 0:00:51.7]}
47... Kg7 {[%clk 0:00:10.4]} 48. c4 {[%clk 0:00:50.8]} 48... Re8+ {[%clk
0:00:08.9]} 49. Kf5 {[%clk 0:00:51.2]} 1-0

[Event "Early-Titled-Tuesday-Blitz-October-10-2023"]
[Site "Chess.com"]
[Date "2023.10.10"]
[Round "11"]
[White "Wizard_97"]
[Black "N4700000"]
[Result "0-1"]
[WhiteElo "2563"]
[BlackElo "2450"]
[TimeControl "180+1"]
[EndTime "10:04:33 PDT"]
[Termination "N4700000 won by checkmate"]

1. e4 {[%clk 0:02:56.4]} 1... c6 {[%clk 0:03:00.4]} 2. d4 {[%clk 0:02:55.2]}
2... d5 {[%clk 0:03:00.8]} 3. Nd2 {[%clk 0:02:55.6]} 3... dxe4 {[%clk
0:03:00.3]} 4. Nxe4 {[%clk 0:02:56.5]} 4... Nf6 {[%clk 0:03:00.7]} 5. Nxf6+
{[%clk 0:02:57.2]} 5... exf6 {[%clk 0:03:01.6]} 6. c3 {[%clk 0:02:58]} 6... Bd6
{[%clk 0:03:01.3]} 7. Bd3 {[%clk 0:02:58.5]} 7... Na6 {[%clk 0:03:01.7]} 8. Ne2
{[%clk 0:02:58.8]} 8... Nc7 {[%clk 0:03:01]} 9. O-O {[%clk 0:02:59.2]} 9... O-O
{[%clk 0:02:59.1]} 10. Qc2 {[%clk 0:02:59.5]} 10... g6 {[%clk 0:02:56.1]} 11.
Ng3 {[%clk 0:02:56.1]} 11... f5 {[%clk 0:02:50.8]} 12. Bh6 {[%clk 0:02:56.6]}
12... Re8 {[%clk 0:02:50]} 13. Rae1 {[%clk 0:02:57.2]} 13... Ne6 {[%clk
0:02:42.3]} 14. b3 {[%clk 0:02:56.8]} 14... Qh4 {[%clk 0:02:28.5]} 15. Bc1
{[%clk 0:02:38]} 15... Bd7 {[%clk 0:02:26.2]} 16. Re2 {[%clk 0:02:24.9]} 16...
f4 {[%clk 0:01:59.4]} 17. Ne4 {[%clk 0:02:15.4]} 17... f3 {[%clk 0:01:55]} 18.
Nxd6 {[%clk 0:02:08.5]} 18... fxe2 {[%clk 0:01:54.8]} 19. Bxe2 {[%clk
0:02:07.9]} 19... Re7 {[%clk 0:01:43.1]} 20. Ne4 {[%clk 0:01:55]} 20... Nf4
{[%clk 0:01:35.7]} 21. Bf3 {[%clk 0:01:49.6]} 21... Bf5 {[%clk 0:01:20.3]} 22.
g3 {[%clk 0:01:36.1]} 22... Nh3+ {[%clk 0:01:18.1]} 23. Kg2 {[%clk 0:01:18]}
23... Qxe4 {[%clk 0:01:12]} 24. Bxe4 {[%clk 0:01:12.9]} 24... Bxe4+ {[%clk
0:01:12.1]} 25. Qxe4 {[%clk 0:01:13.5]} 25... Rxe4 {[%clk 0:01:12.7]} 26. Kxh3
{[%clk 0:01:14.2]} 26... Rae8 {[%clk 0:01:10.2]} 27. Be3 {[%clk 0:01:14.6]}
27... f6 {[%clk 0:01:05.9]} 28. Kg2 {[%clk 0:01:14.1]} 28... Kf7 {[%clk
0:01:05.3]} 29. Kf3 {[%clk 0:01:14.5]} 29... g5 {[%clk 0:01:03.7]} 30. h3 {[%clk
0:01:13.1]} 30... h5 {[%clk 0:01:04]} 31. a4 {[%clk 0:01:12.7]} 31... Kg6 {[%clk
0:01:03.6]} 32. a5 {[%clk 0:01:11]} 32... a6 {[%clk 0:01:00.7]} 33. Ra1 {[%clk
0:01:10.3]} 33... f5 {[%clk 0:01:00.6]} 34. Ra4 {[%clk 0:01:03]} 34... h4 {[%clk
0:00:58.9]} 35. gxh4 {[%clk 0:00:30.7]} 35... Rxh4 {[%clk 0:00:57.6]} 36. Kg2
{[%clk 0:00:20.4]} 36... f4 {[%clk 0:00:56.9]} 37. Bc1 {[%clk 0:00:20.1]} 37...
Reh8 {[%clk 0:00:54.4]} 38. Rb4 {[%clk 0:00:20.5]} 38... R8h7 {[%clk 0:00:53.6]}
39. d5 {[%clk 0:00:19.8]} 39... cxd5 {[%clk 0:00:48.3]} 40. Rb6+ {[%clk
0:00:20.3]} 40... Kf5 {[%clk 0:00:47.5]} 41. Rd6 {[%clk 0:00:15.4]} 41... Rxh3
{[%clk 0:00:45.7]} 42. Rxd5+ {[%clk 0:00:15.4]} 42... Ke4 {[%clk 0:00:43.6]} 43.
Rd4+ {[%clk 0:00:13.4]} 43... Ke5 {[%clk 0:00:43.8]} 44. Bd2 {[%clk 0:00:13.1]}
44... f3+ {[%clk 0:00:43.2]} 45. Kf1 {[%clk 0:00:11.6]} 45... Rh1# {[%clk
0:00:43.7]} 0-1